{"text_format":"3","workbook":"xlsx","n_sheets":6,"sheets":["Pano","Satışlar","Gelir","Giderler","Vergiler","Kategoriler"],"not_rendered":{"images":1,"defined_names":34},"read":"whole","date_system":"1900"}

{"sheet":"Pano","index":0,"n_rows":19,"n_cols":8,"rows_kept":19,"merged":[[0,2,0,4],[0,6,3,7],[4,1,4,7]]}
[null,"Kar ve Zarar Bildirimi","[Ay ve Yıl] için [Gün-Ay-Yıl] tarihinde biten"]
[null,"Şirket Adı","000’lar halinde belirtilmiştir"]
[null,"Geçerli Brüt marj  [L/J]",{"$f":"IFERROR(IF(Toplam_Brüt_Kar=0,\"-\",Toplam_Brüt_Kar/Toplam_Satış_Geliri),\"-\")","v":"-"}]
[null,"Geçerli Satış kazancı  [T/J]",{"$f":"IFERROR(IF(Net_Kar=0,\"-\",Net_Kar/Toplam_Satış_Geliri),\"-\")","v":"-"}]
[null,"Bu çalışma sayfasındaki kategorileri değiştirmeyin, aksi takdirde formüller bozulabilir. Kategoriler eklemek için Kategori çalışma sayfasını kullanın ve girdilerle karşılık gelen çalışma sayfalarını güncelleştirin. Bu çalışma sayfası otomatik olarak güncellenir"]
[null,"Özet","Önceki Dönem Toplamı","Toplam Bütçe","Geçerli Toplam\nDönem","Satışların %’si olarak Geçerli Dönem Toplamı","Önceki Döneme göre Toplam % Değişikliği","Bütçeye göre Toplam % Değişikliği"]
[null,"Toplam Satış Geliri  [J]",{"$f":"SUMIFS(SatışGeliri[Önceki Dönem],SatışGeliri[Gelir Türü],\"Satış Geliri\")","v":0},{"$f":"SUMIFS(SatışGeliri[Bütçe],SatışGeliri[Gelir Türü],\"Satış Geliri\")","v":0},{"$f":"SUMIFS(SatışGeliri[Geçerli Dönem],SatışGeliri[Gelir Türü],\"Satış Geliri\")","v":0},{"$f":"SUMIFS(SatışGeliri[Satışların %’si olarak Geçerli Dönem],SatışGeliri[Gelir Türü],\"Satış Geliri\")","v":{"v":0,"d":"0.00%"}},{"$f":"SUMIFS(SatışGeliri[Önceki Döneme göre % Değişikliği],SatışGeliri[Gelir Türü],\"Satış Geliri\")","v":{"v":0,"d":"0.00%"}},{"$f":"SUMIFS(SatışGeliri[Bütçeye göre % Değişikliği],SatışGeliri[Gelir Türü],\"Satış Geliri\")","v":{"v":0,"d":"0.00%"}}]
[null,"Satışların Toplam Maliyeti  [K]",{"$f":"SUMIFS(SatışGeliri[Önceki Dönem],SatışGeliri[Gelir Türü],\"Satışların Maliyeti\")","v":0},{"$f":"SUMIFS(SatışGeliri[Bütçe],SatışGeliri[Gelir Türü],\"Satışların Maliyeti\")","v":0},{"$f":"SUMIFS(SatışGeliri[Geçerli Dönem],SatışGeliri[Gelir Türü],\"Satışların Maliyeti\")","v":0},{"$f":"SUMIFS(SatışGeliri[Satışların %’si olarak Geçerli Dönem],SatışGeliri[Gelir Türü],\"Satışların Maliyeti\")","v":{"v":0,"d":"0.00%"}},{"$f":"SUMIFS(SatışGeliri[Önceki Döneme göre % Değişikliği],SatışGeliri[Gelir Türü],\"Satışların Maliyeti\")","v":{"v":0,"d":"0.00%"}},{"$f":"SUMIFS(SatışGeliri[Bütçeye göre % Değişikliği],SatışGeliri[Gelir Türü],\"Satışların Maliyeti\")","v":{"v":0,"d":"0.00%"}}]
[null,"Toplam Satışlar ve Pazarlama Giderleri  [M]",{"$f":"SUMIFS(İşletimGiderleri[Önceki Dönem],İşletimGiderleri[Gider Türü],\"Satış ve Pazarlama\")","v":0},{"$f":"SUMIFS(İşletimGiderleri[Bütçe],İşletimGiderleri[Gider Türü],\"Satış ve Pazarlama\")","v":0},{"$f":"SUMIFS(İşletimGiderleri[Geçerli Dönem],İşletimGiderleri[Gider Türü],\"Satış ve Pazarlama\")","v":0},{"$f":"SUMIFS(İşletimGiderleri[Satışların %’si olarak Geçerli Dönem],İşletimGiderleri[Gider Türü],\"Satış ve Pazarlama\")","v":{"v":0,"d":"0.00%"}},{"$f":"SUMIFS(İşletimGiderleri[Önceki Döneme göre % Değişikliği],İşletimGiderleri[Gider Türü],\"Satış ve Pazarlama\")","v":{"v":0,"d":"0.00%"}},{"$f":"SUMIFS(İşletimGiderleri[Bütçeye göre % Değişikliği],İşletimGiderleri[Gider Türü],\"Satış ve Pazarlama\")","v":{"v":0,"d":"0.00%"}}]
[null,"Toplam Araştırma ve geliştirme Giderleri [N]",{"$f":"SUMIFS(İşletimGiderleri[Önceki Dönem],İşletimGiderleri[Gider Türü],\"Araştırma ve Geliştirme\")","v":0},{"$f":"SUMIFS(İşletimGiderleri[Bütçe],İşletimGiderleri[Gider Türü],\"Araştırma ve Geliştirme\")","v":0},{"$f":"SUMIFS(İşletimGiderleri[Geçerli Dönem],İşletimGiderleri[Gider Türü],\"Araştırma ve Geliştirme\")","v":0},{"$f":"SUMIFS(İşletimGiderleri[Satışların %’si olarak Geçerli Dönem],İşletimGiderleri[Gider Türü],\"Araştırma ve Geliştirme\")","v":{"v":0,"d":"0.00%"}},{"$f":"SUMIFS(İşletimGiderleri[Önceki Döneme göre % Değişikliği],İşletimGiderleri[Gider Türü],\"Araştırma ve Geliştirme\")","v":{"v":0,"d":"0.00%"}},{"$f":"SUMIFS(İşletimGiderleri[Bütçeye göre % Değişikliği],İşletimGiderleri[Gider Türü],\"Araştırma ve Geliştirme\")","v":{"v":0,"d":"0.00%"}}]
[null,"Toplam Genel ve Yönetim Giderleri  [O]",{"$f":"SUMIFS(İşletimGiderleri[Önceki Dönem],İşletimGiderleri[Gider Türü],\"Genel ve Yönetim\")","v":0},{"$f":"SUMIFS(İşletimGiderleri[Bütçe],İşletimGiderleri[Gider Türü],\"Genel ve Yönetim\")","v":0},{"$f":"SUMIFS(İşletimGiderleri[Geçerli Dönem],İşletimGiderleri[Gider Türü],\"Genel ve Yönetim\")","v":0},{"$f":"SUMIFS(İşletimGiderleri[Satışların %’si olarak Geçerli Dönem],İşletimGiderleri[Gider Türü],\"Genel ve Yönetim\")","v":{"v":0,"d":"0.00%"}},{"$f":"SUMIFS(İşletimGiderleri[Önceki Döneme göre % Değişikliği],İşletimGiderleri[Gider Türü],\"Genel ve Yönetim\")","v":{"v":0,"d":"0.00%"}},{"$f":"SUMIFS(İşletimGiderleri[Bütçeye göre % Değişikliği],İşletimGiderleri[Gider Türü],\"Genel ve Yönetim\")","v":{"v":0,"d":"0.00%"}}]
[null,"Toplam Diğer İşletim Giderleri [P]",{"$f":"İşletimGiderleri[[#Totals],[Önceki Dönem]]-SUM(C9:C11)","v":0},{"$f":"İşletimGiderleri[[#Totals],[Bütçe]]-SUM(D9:D11)","v":0},{"$f":"İşletimGiderleri[[#Totals],[Geçerli Dönem]]-SUM(E9:E11)","v":0},{"$f":"İşletimGiderleri[[#Totals],[Satışların %’si olarak Geçerli Dönem]]-SUM(F9:F11)","v":{"v":0,"d":"0.00%"}},{"$f":"İşletimGiderleri[[#Totals],[Önceki Döneme göre % Değişikliği]]-SUM(G9:G11)","v":{"v":0,"d":"0.00%"}},{"$f":"İşletimGiderleri[[#Totals],[Bütçeye göre % Değişikliği]]-SUM(H9:H11)","v":{"v":0,"d":"0.00%"}}]
[null,"Diğer Gelirler  [S]",{"$f":"Gelir[[#Totals],[Önceki Dönem]]","v":0},{"$f":"Gelir[[#Totals],[Bütçe]]","v":0},{"$f":"Gelir[[#Totals],[Geçerli Dönem]]","v":0},{"$f":"Gelir[[#Totals],[Satışların %’si olarak Geçerli Dönem]]","v":{"v":0,"d":"0.00%"}},{"$f":"Gelir[[#Totals],[Önceki Döneme göre % Değişikliği]]","v":{"v":0,"d":"0.00%"}},{"$f":"Gelir[[#Totals],[Bütçeye göre % Değişikliği]]","v":{"v":0,"d":"0.00%"}}]
[null,"Toplam Vergiler  [T]",{"$f":"Vergiler[[#Totals],[Önceki Dönem]]","v":0},{"$f":"Vergiler[[#Totals],[Bütçe]]","v":0},{"$f":"Vergiler[[#Totals],[Geçerli Dönem]]","v":0},{"$f":"Vergiler[[#Totals],[Satışların %’si olarak Geçerli Dönem]]","v":{"v":0,"d":"0.00%"}},{"$f":"Vergiler[[#Totals],[Önceki Döneme göre % Değişikliği]]","v":{"v":0,"d":"0.00%"}},{"$f":"Vergiler[[#Totals],[Bütçeye göre % Değişikliği]]","v":{"v":0,"d":"0.00%"}}]
[]
[null,"Brüt Kar  [L=J-K]",{"$f":"IFERROR(C7-C8,\"-\")","v":0},{"$f":"IFERROR(D7-D8,\"-\")","v":0},{"$f":"IFERROR(Toplam_Satış_Geliri-Toplam_Maliyet_Satışlar,\"-\")","v":0},{"$f":"IFERROR(IF(Toplam_Satış_Geliri=0,\"0,00%\",Toplam_Brüt_Kar/Toplam_Satış_Geliri),\"-\")","v":"0,00%"},{"$f":"IFERROR(IF(C16=Toplam_Brüt_Kar,0,IF(Toplam_Brüt_Kar>C16,ABS((Toplam_Brüt_Kar/C16)-1),IF(AND(Toplam_Brüt_Kar<C16,C16<0),-((Toplam_Brüt_Kar/C16)-1),(Toplam_Brüt_Kar/C16)-1))),\"-\")","v":{"v":0,"d":"0.00%"}},{"$f":"IFERROR(IF(D16=Toplam_Brüt_Kar,0,IF(Toplam_Brüt_Kar>D16,ABS((Toplam_Brüt_Kar/D16)-1),IF(AND(Toplam_Brüt_Kar<D16,D16<0),-((Toplam_Brüt_Kar/D16)-1),(Toplam_Brüt_Kar/D16)-1))),\"-\")","v":{"v":0,"d":"0.00%"}}]
[null,"Toplam İşletim Giderleri  [Q=M+N+O+P]",{"$f":"IFERROR(C9+C10+C11+C12,\"-\")","v":0},{"$f":"IFERROR(D9+D10+D11+D12,\"-\")","v":0},{"$f":"IFERROR(Toplam_Satış_ve_Pazarlama+Toplam_Araştırma_ve_Geliştirme+Toplam_Genel_ve_Yönetim+Toplam_Diğer_Giderler,\"-\")","v":0},{"$f":"IFERROR(IF(Toplam_Satış_Geliri=0,\"0,00%\",Toplam_İşletme_Giderleri/Toplam_Satış_Geliri),\"-\")","v":"0,00%"},{"$f":"IFERROR(IF(C17=Toplam_İşletme_Giderleri,0,IF(Toplam_İşletme_Giderleri>C17,ABS((Toplam_İşletme_Giderleri/C17)-1),IF(AND(Toplam_İşletme_Giderleri<C17,C17<0),-((Toplam_İşletme_Giderleri/C17)-1),(Toplam_İşletme_Giderleri/C17)-1))),\"-\")","v":{"v":0,"d":"0.00%"}},{"$f":"IFERROR(IF(D17=Toplam_İşletme_Giderleri,0,IF(Toplam_İşletme_Giderleri>D17,ABS((Toplam_İşletme_Giderleri/D17)-1),IF(AND(Toplam_İşletme_Giderleri<D17,D17<0),-((Toplam_İşletme_Giderleri/D17)-1),(Toplam_İşletme_Giderleri/D17)-1))),\"-\")","v":{"v":0,"d":"0.00%"}}]
[null,"İşlemlerden Elde Edilen Gelir  [R=L-Q]",{"$f":"IFERROR(C16-C17,\"-\")","v":0},{"$f":"IFERROR(D16-D17,\"-\")","v":0},{"$f":"IFERROR(Toplam_Brüt_Kar-Toplam_İşletme_Giderleri,\"-\")","v":0},{"$f":"IFERROR(IF(Toplam_Satış_Geliri=0,\"0,00%\",Toplam_Gelir_İşlemler/Toplam_Satış_Geliri),\"-\")","v":"0,00%"},{"$f":"IFERROR(IF(C18=Toplam_Gelir_İşlemler,0,IF(Toplam_Gelir_İşlemler>C18,ABS((Toplam_Gelir_İşlemler/C18)-1),IF(AND(Toplam_Gelir_İşlemler<C18,C18<0),-((Toplam_Gelir_İşlemler/C18)-1),(Toplam_Gelir_İşlemler/C18)-1))),\"-\")","v":{"v":0,"d":"0.00%"}},{"$f":"IFERROR(IF(D18=Toplam_Gelir_İşlemler,0,IF(Toplam_Gelir_İşlemler>D18,ABS((Toplam_Gelir_İşlemler/D18)-1),IF(AND(Toplam_Gelir_İşlemler<D18,D18<0),-((Toplam_Gelir_İşlemler/D18)-1),(Toplam_Gelir_İşlemler/D18)-1))),\"-\")","v":{"v":0,"d":"0.00%"}}]
[null,"Net Kar  [U=R+S-T]",{"$f":"IFERROR(C18+C13-C14,\"-\")","v":0},{"$f":"IFERROR(D18+D13-D14,\"-\")","v":0},{"$f":"Toplam_Gelir_İşlemler+Toplam_Diğer_Gelir-Toplam_Vergiler","v":0},{"$f":"IFERROR(IF(Toplam_Satış_Geliri=0,\"0,00%\",Net_Kar/Toplam_Satış_Geliri),\"-\")","v":"0,00%"},{"$f":"IFERROR(IF(C19=Net_Kar,0,IF(Net_Kar>C19,ABS((Net_Kar/C19)-1),IF(AND(Net_Kar<C19,C19<0),-((Net_Kar/C19)-1),(Net_Kar/C19)-1))),\"-\")","v":{"v":0,"d":"0.00%"}},{"$f":"IFERROR(IF(D19=Net_Kar,0,IF(Net_Kar>D19,ABS((Net_Kar/D19)-1),IF(AND(Net_Kar<D19,D19<0),-((Net_Kar/D19)-1),(Net_Kar/D19)-1))),\"-\")","v":{"v":0,"d":"0.00%"}}]

{"sheet":"Satışlar","index":1,"n_rows":13,"n_cols":9,"rows_kept":13,"merged":[[0,7,2,8]]}
[null,{"$f":"Çalışma_Kitabı_Başlığı","v":"Kar ve Zarar Bildirimi"}]
[null,{"$f":"Şirket_Adı","v":"Şirket Adı"},"000’lar halinde belirtilmiştir"]
[null,"Satış Geliri",{"$f":"IFERROR(Satış_Geliri,\"-\")","v":0}]
[null,"Gelir Türü","Açıklama","Önceki Dönem","Bütçe","Geçerli Dönem","Satışların %’si olarak Geçerli Dönem","Önceki Döneme göre % Değişikliği","Bütçeye göre % Değişikliği"]
[null,"Satış Geliri","Ürün/Hizmet 1",{"$nulls":3},{"$f":"IFERROR(IF(SatışGeliri[[#Data],[#Totals],[Geçerli Dönem]]=0,\"-\",SatışGeliri[Geçerli Dönem]/Satış_Geliri),\"-\")","v":"-"},{"$f":"IFERROR(IF(SatışGeliri[[#This Row],[Önceki Dönem]]=SatışGeliri[[#This Row],[Geçerli Dönem]],0,IF(SatışGeliri[[#This Row],[Geçerli Dönem]]>SatışGeliri[[#This Row],[Önceki Dönem]],ABS((SatışGeliri[[#This Row],[Geçerli Dönem]]/SatışGeliri[[#This Row],[Önceki Dönem]])-1),IF(AND(SatışGeliri[[#This Row],[Geçerli Dönem]]<SatışGeliri[[#This Row],[Önceki Dönem]],SatışGeliri[[#This Row],[Önceki Dönem]]<0),-((SatışGeliri[[#This Row],[Geçerli Dönem]]/SatışGeliri[[#This Row],[Önceki Dönem]])-1),(SatışGeliri[[#This Row],[Geçerli Dönem]]/SatışGeliri[[#This Row],[Önceki Dönem]])-1))),\"-\")","v":{"v":0,"d":"0.00%"}},{"$f":"IFERROR(IF(SatışGeliri[[#This Row],[Bütçe]]=SatışGeliri[[#This Row],[Geçerli Dönem]],0,IF(SatışGeliri[[#This Row],[Geçerli Dönem]]>SatışGeliri[[#This Row],[Bütçe]],ABS((SatışGeliri[[#This Row],[Geçerli Dönem]]/SatışGeliri[[#This Row],[Bütçe]])-1),IF(AND(SatışGeliri[[#This Row],[Geçerli Dönem]]<SatışGeliri[[#This Row],[Bütçe]],SatışGeliri[[#This Row],[Bütçe]]<0),-((SatışGeliri[[#This Row],[Geçerli Dönem]]/SatışGeliri[[#This Row],[Bütçe]])-1),(SatışGeliri[[#This Row],[Geçerli Dönem]]/SatışGeliri[[#This Row],[Bütçe]])-1))),\"-\")","v":{"v":0,"d":"0.00%"}}]
[null,"Satış Geliri","Ürün/Hizmet 2",{"$nulls":3},{"$f":"IFERROR(IF(SatışGeliri[[#Data],[#Totals],[Geçerli Dönem]]=0,\"-\",SatışGeliri[Geçerli Dönem]/Satış_Geliri),\"-\")","v":"-"},{"$f":"IFERROR(IF(SatışGeliri[[#This Row],[Önceki Dönem]]=SatışGeliri[[#This Row],[Geçerli Dönem]],0,IF(SatışGeliri[[#This Row],[Geçerli Dönem]]>SatışGeliri[[#This Row],[Önceki Dönem]],ABS((SatışGeliri[[#This Row],[Geçerli Dönem]]/SatışGeliri[[#This Row],[Önceki Dönem]])-1),IF(AND(SatışGeliri[[#This Row],[Geçerli Dönem]]<SatışGeliri[[#This Row],[Önceki Dönem]],SatışGeliri[[#This Row],[Önceki Dönem]]<0),-((SatışGeliri[[#This Row],[Geçerli Dönem]]/SatışGeliri[[#This Row],[Önceki Dönem]])-1),(SatışGeliri[[#This Row],[Geçerli Dönem]]/SatışGeliri[[#This Row],[Önceki Dönem]])-1))),\"-\")","v":{"v":0,"d":"0.00%"}},{"$f":"IFERROR(IF(SatışGeliri[[#This Row],[Bütçe]]=SatışGeliri[[#This Row],[Geçerli Dönem]],0,IF(SatışGeliri[[#This Row],[Geçerli Dönem]]>SatışGeliri[[#This Row],[Bütçe]],ABS((SatışGeliri[[#This Row],[Geçerli Dönem]]/SatışGeliri[[#This Row],[Bütçe]])-1),IF(AND(SatışGeliri[[#This Row],[Geçerli Dönem]]<SatışGeliri[[#This Row],[Bütçe]],SatışGeliri[[#This Row],[Bütçe]]<0),-((SatışGeliri[[#This Row],[Geçerli Dönem]]/SatışGeliri[[#This Row],[Bütçe]])-1),(SatışGeliri[[#This Row],[Geçerli Dönem]]/SatışGeliri[[#This Row],[Bütçe]])-1))),\"-\")","v":{"v":0,"d":"0.00%"}}]
[null,"Satış Geliri","Ürün/Hizmet 3",{"$nulls":3},{"$f":"IFERROR(IF(SatışGeliri[[#Data],[#Totals],[Geçerli Dönem]]=0,\"-\",SatışGeliri[Geçerli Dönem]/Satış_Geliri),\"-\")","v":"-"},{"$f":"IFERROR(IF(SatışGeliri[[#This Row],[Önceki Dönem]]=SatışGeliri[[#This Row],[Geçerli Dönem]],0,IF(SatışGeliri[[#This Row],[Geçerli Dönem]]>SatışGeliri[[#This Row],[Önceki Dönem]],ABS((SatışGeliri[[#This Row],[Geçerli Dönem]]/SatışGeliri[[#This Row],[Önceki Dönem]])-1),IF(AND(SatışGeliri[[#This Row],[Geçerli Dönem]]<SatışGeliri[[#This Row],[Önceki Dönem]],SatışGeliri[[#This Row],[Önceki Dönem]]<0),-((SatışGeliri[[#This Row],[Geçerli Dönem]]/SatışGeliri[[#This Row],[Önceki Dönem]])-1),(SatışGeliri[[#This Row],[Geçerli Dönem]]/SatışGeliri[[#This Row],[Önceki Dönem]])-1))),\"-\")","v":{"v":0,"d":"0.00%"}},{"$f":"IFERROR(IF(SatışGeliri[[#This Row],[Bütçe]]=SatışGeliri[[#This Row],[Geçerli Dönem]],0,IF(SatışGeliri[[#This Row],[Geçerli Dönem]]>SatışGeliri[[#This Row],[Bütçe]],ABS((SatışGeliri[[#This Row],[Geçerli Dönem]]/SatışGeliri[[#This Row],[Bütçe]])-1),IF(AND(SatışGeliri[[#This Row],[Geçerli Dönem]]<SatışGeliri[[#This Row],[Bütçe]],SatışGeliri[[#This Row],[Bütçe]]<0),-((SatışGeliri[[#This Row],[Geçerli Dönem]]/SatışGeliri[[#This Row],[Bütçe]])-1),(SatışGeliri[[#This Row],[Geçerli Dönem]]/SatışGeliri[[#This Row],[Bütçe]])-1))),\"-\")","v":{"v":0,"d":"0.00%"}}]
[null,"Satış Geliri","Ürün/Hizmet 4",{"$nulls":3},{"$f":"IFERROR(IF(SatışGeliri[[#Data],[#Totals],[Geçerli Dönem]]=0,\"-\",SatışGeliri[Geçerli Dönem]/Satış_Geliri),\"-\")","v":"-"},{"$f":"IFERROR(IF(SatışGeliri[[#This Row],[Önceki Dönem]]=SatışGeliri[[#This Row],[Geçerli Dönem]],0,IF(SatışGeliri[[#This Row],[Geçerli Dönem]]>SatışGeliri[[#This Row],[Önceki Dönem]],ABS((SatışGeliri[[#This Row],[Geçerli Dönem]]/SatışGeliri[[#This Row],[Önceki Dönem]])-1),IF(AND(SatışGeliri[[#This Row],[Geçerli Dönem]]<SatışGeliri[[#This Row],[Önceki Dönem]],SatışGeliri[[#This Row],[Önceki Dönem]]<0),-((SatışGeliri[[#This Row],[Geçerli Dönem]]/SatışGeliri[[#This Row],[Önceki Dönem]])-1),(SatışGeliri[[#This Row],[Geçerli Dönem]]/SatışGeliri[[#This Row],[Önceki Dönem]])-1))),\"-\")","v":{"v":0,"d":"0.00%"}},{"$f":"IFERROR(IF(SatışGeliri[[#This Row],[Bütçe]]=SatışGeliri[[#This Row],[Geçerli Dönem]],0,IF(SatışGeliri[[#This Row],[Geçerli Dönem]]>SatışGeliri[[#This Row],[Bütçe]],ABS((SatışGeliri[[#This Row],[Geçerli Dönem]]/SatışGeliri[[#This Row],[Bütçe]])-1),IF(AND(SatışGeliri[[#This Row],[Geçerli Dönem]]<SatışGeliri[[#This Row],[Bütçe]],SatışGeliri[[#This Row],[Bütçe]]<0),-((SatışGeliri[[#This Row],[Geçerli Dönem]]/SatışGeliri[[#This Row],[Bütçe]])-1),(SatışGeliri[[#This Row],[Geçerli Dönem]]/SatışGeliri[[#This Row],[Bütçe]])-1))),\"-\")","v":{"v":0,"d":"0.00%"}}]
[null,"Satışların Maliyeti","Ürün/Hizmet 1",{"$nulls":3},{"$f":"IFERROR(IF(SatışGeliri[[#Data],[#Totals],[Geçerli Dönem]]=0,\"-\",SatışGeliri[Geçerli Dönem]/Satış_Geliri),\"-\")","v":"-"},{"$f":"IFERROR(IF(SatışGeliri[[#This Row],[Önceki Dönem]]=SatışGeliri[[#This Row],[Geçerli Dönem]],0,IF(SatışGeliri[[#This Row],[Geçerli Dönem]]>SatışGeliri[[#This Row],[Önceki Dönem]],ABS((SatışGeliri[[#This Row],[Geçerli Dönem]]/SatışGeliri[[#This Row],[Önceki Dönem]])-1),IF(AND(SatışGeliri[[#This Row],[Geçerli Dönem]]<SatışGeliri[[#This Row],[Önceki Dönem]],SatışGeliri[[#This Row],[Önceki Dönem]]<0),-((SatışGeliri[[#This Row],[Geçerli Dönem]]/SatışGeliri[[#This Row],[Önceki Dönem]])-1),(SatışGeliri[[#This Row],[Geçerli Dönem]]/SatışGeliri[[#This Row],[Önceki Dönem]])-1))),\"-\")","v":{"v":0,"d":"0.00%"}},{"$f":"IFERROR(IF(SatışGeliri[[#This Row],[Bütçe]]=SatışGeliri[[#This Row],[Geçerli Dönem]],0,IF(SatışGeliri[[#This Row],[Geçerli Dönem]]>SatışGeliri[[#This Row],[Bütçe]],ABS((SatışGeliri[[#This Row],[Geçerli Dönem]]/SatışGeliri[[#This Row],[Bütçe]])-1),IF(AND(SatışGeliri[[#This Row],[Geçerli Dönem]]<SatışGeliri[[#This Row],[Bütçe]],SatışGeliri[[#This Row],[Bütçe]]<0),-((SatışGeliri[[#This Row],[Geçerli Dönem]]/SatışGeliri[[#This Row],[Bütçe]])-1),(SatışGeliri[[#This Row],[Geçerli Dönem]]/SatışGeliri[[#This Row],[Bütçe]])-1))),\"-\")","v":{"v":0,"d":"0.00%"}}]
[null,"Satışların Maliyeti","Ürün/Hizmet 2",{"$nulls":3},{"$f":"IFERROR(IF(SatışGeliri[[#Data],[#Totals],[Geçerli Dönem]]=0,\"-\",SatışGeliri[Geçerli Dönem]/Satış_Geliri),\"-\")","v":"-"},{"$f":"IFERROR(IF(SatışGeliri[[#This Row],[Önceki Dönem]]=SatışGeliri[[#This Row],[Geçerli Dönem]],0,IF(SatışGeliri[[#This Row],[Geçerli Dönem]]>SatışGeliri[[#This Row],[Önceki Dönem]],ABS((SatışGeliri[[#This Row],[Geçerli Dönem]]/SatışGeliri[[#This Row],[Önceki Dönem]])-1),IF(AND(SatışGeliri[[#This Row],[Geçerli Dönem]]<SatışGeliri[[#This Row],[Önceki Dönem]],SatışGeliri[[#This Row],[Önceki Dönem]]<0),-((SatışGeliri[[#This Row],[Geçerli Dönem]]/SatışGeliri[[#This Row],[Önceki Dönem]])-1),(SatışGeliri[[#This Row],[Geçerli Dönem]]/SatışGeliri[[#This Row],[Önceki Dönem]])-1))),\"-\")","v":{"v":0,"d":"0.00%"}},{"$f":"IFERROR(IF(SatışGeliri[[#This Row],[Bütçe]]=SatışGeliri[[#This Row],[Geçerli Dönem]],0,IF(SatışGeliri[[#This Row],[Geçerli Dönem]]>SatışGeliri[[#This Row],[Bütçe]],ABS((SatışGeliri[[#This Row],[Geçerli Dönem]]/SatışGeliri[[#This Row],[Bütçe]])-1),IF(AND(SatışGeliri[[#This Row],[Geçerli Dönem]]<SatışGeliri[[#This Row],[Bütçe]],SatışGeliri[[#This Row],[Bütçe]]<0),-((SatışGeliri[[#This Row],[Geçerli Dönem]]/SatışGeliri[[#This Row],[Bütçe]])-1),(SatışGeliri[[#This Row],[Geçerli Dönem]]/SatışGeliri[[#This Row],[Bütçe]])-1))),\"-\")","v":{"v":0,"d":"0.00%"}}]
[null,"Satışların Maliyeti","Ürün/Hizmet 3",{"$nulls":3},{"$f":"IFERROR(IF(SatışGeliri[[#Data],[#Totals],[Geçerli Dönem]]=0,\"-\",SatışGeliri[Geçerli Dönem]/Satış_Geliri),\"-\")","v":"-"},{"$f":"IFERROR(IF(SatışGeliri[[#This Row],[Önceki Dönem]]=SatışGeliri[[#This Row],[Geçerli Dönem]],0,IF(SatışGeliri[[#This Row],[Geçerli Dönem]]>SatışGeliri[[#This Row],[Önceki Dönem]],ABS((SatışGeliri[[#This Row],[Geçerli Dönem]]/SatışGeliri[[#This Row],[Önceki Dönem]])-1),IF(AND(SatışGeliri[[#This Row],[Geçerli Dönem]]<SatışGeliri[[#This Row],[Önceki Dönem]],SatışGeliri[[#This Row],[Önceki Dönem]]<0),-((SatışGeliri[[#This Row],[Geçerli Dönem]]/SatışGeliri[[#This Row],[Önceki Dönem]])-1),(SatışGeliri[[#This Row],[Geçerli Dönem]]/SatışGeliri[[#This Row],[Önceki Dönem]])-1))),\"-\")","v":{"v":0,"d":"0.00%"}},{"$f":"IFERROR(IF(SatışGeliri[[#This Row],[Bütçe]]=SatışGeliri[[#This Row],[Geçerli Dönem]],0,IF(SatışGeliri[[#This Row],[Geçerli Dönem]]>SatışGeliri[[#This Row],[Bütçe]],ABS((SatışGeliri[[#This Row],[Geçerli Dönem]]/SatışGeliri[[#This Row],[Bütçe]])-1),IF(AND(SatışGeliri[[#This Row],[Geçerli Dönem]]<SatışGeliri[[#This Row],[Bütçe]],SatışGeliri[[#This Row],[Bütçe]]<0),-((SatışGeliri[[#This Row],[Geçerli Dönem]]/SatışGeliri[[#This Row],[Bütçe]])-1),(SatışGeliri[[#This Row],[Geçerli Dönem]]/SatışGeliri[[#This Row],[Bütçe]])-1))),\"-\")","v":{"v":0,"d":"0.00%"}}]
[null,"Satışların Maliyeti","Ürün/Hizmet 4",{"$nulls":3},{"$f":"IFERROR(IF(SatışGeliri[[#Data],[#Totals],[Geçerli Dönem]]=0,\"-\",SatışGeliri[Geçerli Dönem]/Satış_Geliri),\"-\")","v":"-"},{"$f":"IFERROR(IF(SatışGeliri[[#This Row],[Önceki Dönem]]=SatışGeliri[[#This Row],[Geçerli Dönem]],0,IF(SatışGeliri[[#This Row],[Geçerli Dönem]]>SatışGeliri[[#This Row],[Önceki Dönem]],ABS((SatışGeliri[[#This Row],[Geçerli Dönem]]/SatışGeliri[[#This Row],[Önceki Dönem]])-1),IF(AND(SatışGeliri[[#This Row],[Geçerli Dönem]]<SatışGeliri[[#This Row],[Önceki Dönem]],SatışGeliri[[#This Row],[Önceki Dönem]]<0),-((SatışGeliri[[#This Row],[Geçerli Dönem]]/SatışGeliri[[#This Row],[Önceki Dönem]])-1),(SatışGeliri[[#This Row],[Geçerli Dönem]]/SatışGeliri[[#This Row],[Önceki Dönem]])-1))),\"-\")","v":{"v":0,"d":"0.00%"}},{"$f":"IFERROR(IF(SatışGeliri[[#This Row],[Bütçe]]=SatışGeliri[[#This Row],[Geçerli Dönem]],0,IF(SatışGeliri[[#This Row],[Geçerli Dönem]]>SatışGeliri[[#This Row],[Bütçe]],ABS((SatışGeliri[[#This Row],[Geçerli Dönem]]/SatışGeliri[[#This Row],[Bütçe]])-1),IF(AND(SatışGeliri[[#This Row],[Geçerli Dönem]]<SatışGeliri[[#This Row],[Bütçe]],SatışGeliri[[#This Row],[Bütçe]]<0),-((SatışGeliri[[#This Row],[Geçerli Dönem]]/SatışGeliri[[#This Row],[Bütçe]])-1),(SatışGeliri[[#This Row],[Geçerli Dönem]]/SatışGeliri[[#This Row],[Bütçe]])-1))),\"-\")","v":{"v":0,"d":"0.00%"}}]
[null,"Toplam Satış Geliri",null,{"$f":"SUBTOTAL(109,SatışGeliri[Önceki Dönem])","v":0},{"$f":"SUBTOTAL(109,SatışGeliri[Bütçe])","v":0},{"$f":"SUBTOTAL(109,SatışGeliri[Geçerli Dönem])","v":0},{"$f":"SUBTOTAL(109,SatışGeliri[Satışların %’si olarak Geçerli Dönem])","v":{"v":0,"d":"0.00%"}},{"$f":"SUBTOTAL(109,SatışGeliri[Önceki Döneme göre % Değişikliği])","v":{"v":0,"d":"0.00%"}},{"$f":"SUBTOTAL(109,SatışGeliri[Bütçeye göre % Değişikliği])","v":{"v":0,"d":"0.00%"}}]

{"sheet":"Gelir","index":2,"n_rows":7,"n_cols":9,"rows_kept":7,"merged":[[0,7,2,8]]}
[null,{"$f":"Çalışma_Kitabı_Başlığı","v":"Kar ve Zarar Bildirimi"}]
[null,{"$f":"Şirket_Adı","v":"Şirket Adı"},"000’lar halinde belirtilmiştir"]
[null,"Gelir",{"$f":"IFERROR(Gelir[[#Totals],[Geçerli Dönem]],\"-\")","v":0}]
[null,"Gelir Türü","Açıklama","Önceki Dönem","Bütçe","Geçerli Dönem","Satışların %’si olarak Geçerli Dönem","Önceki Döneme göre % Değişikliği","Bütçeye göre % Değişikliği"]
[null,"Gelir","Diğer Gelirler",{"$nulls":3},{"$f":"IFERROR(IF(Satış_Geliri=0,\"-\",Gelir[Geçerli Dönem]/Satış_Geliri),\"-\")","v":"-"},{"$f":"IFERROR(IF(Gelir[[#This Row],[Önceki Dönem]]=Gelir[[#This Row],[Geçerli Dönem]],0,IF(Gelir[[#This Row],[Geçerli Dönem]]>Gelir[[#This Row],[Önceki Dönem]],ABS((Gelir[[#This Row],[Geçerli Dönem]]/Gelir[[#This Row],[Önceki Dönem]])-1),IF(AND(Gelir[[#This Row],[Geçerli Dönem]]<Gelir[[#This Row],[Önceki Dönem]],Gelir[[#This Row],[Önceki Dönem]]<0),-((Gelir[[#This Row],[Geçerli Dönem]]/Gelir[[#This Row],[Önceki Dönem]])-1),(Gelir[[#This Row],[Geçerli Dönem]]/Gelir[[#This Row],[Önceki Dönem]])-1))),\"-\")","v":{"v":0,"d":"0.00%"}},{"$f":"IFERROR(IF(Gelir[[#This Row],[Bütçe]]=Gelir[[#This Row],[Geçerli Dönem]],0,IF(Gelir[[#This Row],[Geçerli Dönem]]>Gelir[[#This Row],[Bütçe]],ABS((Gelir[[#This Row],[Geçerli Dönem]]/Gelir[[#This Row],[Bütçe]])-1),IF(AND(Gelir[[#This Row],[Geçerli Dönem]]<Gelir[[#This Row],[Bütçe]],Gelir[[#This Row],[Bütçe]]<0),-((Gelir[[#This Row],[Geçerli Dönem]]/Gelir[[#This Row],[Bütçe]])-1),(Gelir[[#This Row],[Geçerli Dönem]]/Gelir[[#This Row],[Bütçe]])-1))),\"-\")","v":{"v":0,"d":"0.00%"}}]
[{"$nulls":6},{"$f":"IFERROR(IF(Satış_Geliri=0,\"-\",Gelir[Geçerli Dönem]/Satış_Geliri),\"-\")","v":"-"},{"$f":"IFERROR(IF(Gelir[[#This Row],[Önceki Dönem]]=Gelir[[#This Row],[Geçerli Dönem]],0,IF(Gelir[[#This Row],[Geçerli Dönem]]>Gelir[[#This Row],[Önceki Dönem]],ABS((Gelir[[#This Row],[Geçerli Dönem]]/Gelir[[#This Row],[Önceki Dönem]])-1),IF(AND(Gelir[[#This Row],[Geçerli Dönem]]<Gelir[[#This Row],[Önceki Dönem]],Gelir[[#This Row],[Önceki Dönem]]<0),-((Gelir[[#This Row],[Geçerli Dönem]]/Gelir[[#This Row],[Önceki Dönem]])-1),(Gelir[[#This Row],[Geçerli Dönem]]/Gelir[[#This Row],[Önceki Dönem]])-1))),\"-\")","v":{"v":0,"d":"0.00%"}},{"$f":"IFERROR(IF(Gelir[[#This Row],[Bütçe]]=Gelir[[#This Row],[Geçerli Dönem]],0,IF(Gelir[[#This Row],[Geçerli Dönem]]>Gelir[[#This Row],[Bütçe]],ABS((Gelir[[#This Row],[Geçerli Dönem]]/Gelir[[#This Row],[Bütçe]])-1),IF(AND(Gelir[[#This Row],[Geçerli Dönem]]<Gelir[[#This Row],[Bütçe]],Gelir[[#This Row],[Bütçe]]<0),-((Gelir[[#This Row],[Geçerli Dönem]]/Gelir[[#This Row],[Bütçe]])-1),(Gelir[[#This Row],[Geçerli Dönem]]/Gelir[[#This Row],[Bütçe]])-1))),\"-\")","v":{"v":0,"d":"0.00%"}}]
[null,"Toplam Satış Geliri",null,{"$f":"SUBTOTAL(109,Gelir[Önceki Dönem])","v":0},{"$f":"SUBTOTAL(109,Gelir[Bütçe])","v":0},{"$f":"SUBTOTAL(109,Gelir[Geçerli Dönem])","v":0},{"$f":"SUBTOTAL(109,Gelir[Satışların %’si olarak Geçerli Dönem])","v":{"v":0,"d":"0.00%"}},{"$f":"SUBTOTAL(109,Gelir[Önceki Döneme göre % Değişikliği])","v":{"v":0,"d":"0.00%"}},{"$f":"SUBTOTAL(109,Gelir[Bütçeye göre % Değişikliği])","v":{"v":0,"d":"0.00%"}}]

{"sheet":"Giderler","index":3,"n_rows":25,"n_cols":9,"rows_kept":25,"merged":[[0,7,2,8]]}
[null,{"$f":"Çalışma_Kitabı_Başlığı","v":"Kar ve Zarar Bildirimi"}]
[null,{"$f":"Şirket_Adı","v":"Şirket Adı"},"000’lar halinde belirtilmiştir"]
[null,"İşletme Giderleri",{"$f":"IFERROR(İşletimGiderleri[[#Totals],[Geçerli Dönem]],\"-\")","v":0}]
[null,"Gider Türü","Açıklama","Önceki Dönem","Bütçe","Geçerli Dönem","Satışların %’si olarak Geçerli Dönem","Önceki Döneme göre % Değişikliği","Bütçeye göre % Değişikliği"]
[null,"Satış ve Pazarlama","Reklam",{"$nulls":3},{"$f":"IFERROR(IF(Satış_Geliri=0,\"-\",İşletimGiderleri[Geçerli Dönem]/Satış_Geliri),\"-\")","v":"-"},{"$f":"IFERROR(IF(İşletimGiderleri[[#This Row],[Önceki Dönem]]=İşletimGiderleri[[#This Row],[Geçerli Dönem]],0,IF(İşletimGiderleri[[#This Row],[Geçerli Dönem]]>İşletimGiderleri[[#This Row],[Önceki Dönem]],ABS((İşletimGiderleri[[#This Row],[Geçerli Dönem]]/İşletimGiderleri[[#This Row],[Önceki Dönem]])-1),IF(AND(İşletimGiderleri[[#This Row],[Geçerli Dönem]]<İşletimGiderleri[[#This Row],[Önceki Dönem]],İşletimGiderleri[[#This Row],[Önceki Dönem]]<0),-((İşletimGiderleri[[#This Row],[Geçerli Dönem]]/İşletimGiderleri[[#This Row],[Önceki Dönem]])-1),(İşletimGiderleri[[#This Row],[Geçerli Dönem]]/İşletimGiderleri[[#This Row],[Önceki Dönem]])-1))),\"-\")","v":{"v":0,"d":"0.00%"}},{"$f":"IFERROR(IF(İşletimGiderleri[[#This Row],[Bütçe]]=İşletimGiderleri[[#This Row],[Geçerli Dönem]],0,IF(İşletimGiderleri[[#This Row],[Geçerli Dönem]]>İşletimGiderleri[[#This Row],[Bütçe]],ABS((İşletimGiderleri[[#This Row],[Geçerli Dönem]]/İşletimGiderleri[[#This Row],[Bütçe]])-1),IF(AND(İşletimGiderleri[[#This Row],[Geçerli Dönem]]<İşletimGiderleri[[#This Row],[Bütçe]],İşletimGiderleri[[#This Row],[Bütçe]]<0),-((İşletimGiderleri[[#This Row],[Geçerli Dönem]]/İşletimGiderleri[[#This Row],[Bütçe]])-1),(İşletimGiderleri[[#This Row],[Geçerli Dönem]]/İşletimGiderleri[[#This Row],[Bütçe]])-1))),\"-\")","v":{"v":0,"d":"0.00%"}}]
[null,"Satış ve Pazarlama","Doğrudan pazarlama",{"$nulls":3},{"$f":"IFERROR(IF(Satış_Geliri=0,\"-\",İşletimGiderleri[Geçerli Dönem]/Satış_Geliri),\"-\")","v":"-"},{"$f":"IFERROR(IF(İşletimGiderleri[[#This Row],[Önceki Dönem]]=İşletimGiderleri[[#This Row],[Geçerli Dönem]],0,IF(İşletimGiderleri[[#This Row],[Geçerli Dönem]]>İşletimGiderleri[[#This Row],[Önceki Dönem]],ABS((İşletimGiderleri[[#This Row],[Geçerli Dönem]]/İşletimGiderleri[[#This Row],[Önceki Dönem]])-1),IF(AND(İşletimGiderleri[[#This Row],[Geçerli Dönem]]<İşletimGiderleri[[#This Row],[Önceki Dönem]],İşletimGiderleri[[#This Row],[Önceki Dönem]]<0),-((İşletimGiderleri[[#This Row],[Geçerli Dönem]]/İşletimGiderleri[[#This Row],[Önceki Dönem]])-1),(İşletimGiderleri[[#This Row],[Geçerli Dönem]]/İşletimGiderleri[[#This Row],[Önceki Dönem]])-1))),\"-\")","v":{"v":0,"d":"0.00%"}},{"$f":"IFERROR(IF(İşletimGiderleri[[#This Row],[Bütçe]]=İşletimGiderleri[[#This Row],[Geçerli Dönem]],0,IF(İşletimGiderleri[[#This Row],[Geçerli Dönem]]>İşletimGiderleri[[#This Row],[Bütçe]],ABS((İşletimGiderleri[[#This Row],[Geçerli Dönem]]/İşletimGiderleri[[#This Row],[Bütçe]])-1),IF(AND(İşletimGiderleri[[#This Row],[Geçerli Dönem]]<İşletimGiderleri[[#This Row],[Bütçe]],İşletimGiderleri[[#This Row],[Bütçe]]<0),-((İşletimGiderleri[[#This Row],[Geçerli Dönem]]/İşletimGiderleri[[#This Row],[Bütçe]])-1),(İşletimGiderleri[[#This Row],[Geçerli Dönem]]/İşletimGiderleri[[#This Row],[Bütçe]])-1))),\"-\")","v":{"v":0,"d":"0.00%"}}]
[null,"Satış ve Pazarlama","Diğer giderler (belirtin)",{"$nulls":3},{"$f":"IFERROR(IF(Satış_Geliri=0,\"-\",İşletimGiderleri[Geçerli Dönem]/Satış_Geliri),\"-\")","v":"-"},{"$f":"IFERROR(IF(İşletimGiderleri[[#This Row],[Önceki Dönem]]=İşletimGiderleri[[#This Row],[Geçerli Dönem]],0,IF(İşletimGiderleri[[#This Row],[Geçerli Dönem]]>İşletimGiderleri[[#This Row],[Önceki Dönem]],ABS((İşletimGiderleri[[#This Row],[Geçerli Dönem]]/İşletimGiderleri[[#This Row],[Önceki Dönem]])-1),IF(AND(İşletimGiderleri[[#This Row],[Geçerli Dönem]]<İşletimGiderleri[[#This Row],[Önceki Dönem]],İşletimGiderleri[[#This Row],[Önceki Dönem]]<0),-((İşletimGiderleri[[#This Row],[Geçerli Dönem]]/İşletimGiderleri[[#This Row],[Önceki Dönem]])-1),(İşletimGiderleri[[#This Row],[Geçerli Dönem]]/İşletimGiderleri[[#This Row],[Önceki Dönem]])-1))),\"-\")","v":{"v":0,"d":"0.00%"}},{"$f":"IFERROR(IF(İşletimGiderleri[[#This Row],[Bütçe]]=İşletimGiderleri[[#This Row],[Geçerli Dönem]],0,IF(İşletimGiderleri[[#This Row],[Geçerli Dönem]]>İşletimGiderleri[[#This Row],[Bütçe]],ABS((İşletimGiderleri[[#This Row],[Geçerli Dönem]]/İşletimGiderleri[[#This Row],[Bütçe]])-1),IF(AND(İşletimGiderleri[[#This Row],[Geçerli Dönem]]<İşletimGiderleri[[#This Row],[Bütçe]],İşletimGiderleri[[#This Row],[Bütçe]]<0),-((İşletimGiderleri[[#This Row],[Geçerli Dönem]]/İşletimGiderleri[[#This Row],[Bütçe]])-1),(İşletimGiderleri[[#This Row],[Geçerli Dönem]]/İşletimGiderleri[[#This Row],[Bütçe]])-1))),\"-\")","v":{"v":0,"d":"0.00%"}}]
[null,"Satış ve Pazarlama","Diğer giderler (belirtin)",{"$nulls":3},{"$f":"IFERROR(IF(Satış_Geliri=0,\"-\",İşletimGiderleri[Geçerli Dönem]/Satış_Geliri),\"-\")","v":"-"},{"$f":"IFERROR(IF(İşletimGiderleri[[#This Row],[Önceki Dönem]]=İşletimGiderleri[[#This Row],[Geçerli Dönem]],0,IF(İşletimGiderleri[[#This Row],[Geçerli Dönem]]>İşletimGiderleri[[#This Row],[Önceki Dönem]],ABS((İşletimGiderleri[[#This Row],[Geçerli Dönem]]/İşletimGiderleri[[#This Row],[Önceki Dönem]])-1),IF(AND(İşletimGiderleri[[#This Row],[Geçerli Dönem]]<İşletimGiderleri[[#This Row],[Önceki Dönem]],İşletimGiderleri[[#This Row],[Önceki Dönem]]<0),-((İşletimGiderleri[[#This Row],[Geçerli Dönem]]/İşletimGiderleri[[#This Row],[Önceki Dönem]])-1),(İşletimGiderleri[[#This Row],[Geçerli Dönem]]/İşletimGiderleri[[#This Row],[Önceki Dönem]])-1))),\"-\")","v":{"v":0,"d":"0.00%"}},{"$f":"IFERROR(IF(İşletimGiderleri[[#This Row],[Bütçe]]=İşletimGiderleri[[#This Row],[Geçerli Dönem]],0,IF(İşletimGiderleri[[#This Row],[Geçerli Dönem]]>İşletimGiderleri[[#This Row],[Bütçe]],ABS((İşletimGiderleri[[#This Row],[Geçerli Dönem]]/İşletimGiderleri[[#This Row],[Bütçe]])-1),IF(AND(İşletimGiderleri[[#This Row],[Geçerli Dönem]]<İşletimGiderleri[[#This Row],[Bütçe]],İşletimGiderleri[[#This Row],[Bütçe]]<0),-((İşletimGiderleri[[#This Row],[Geçerli Dönem]]/İşletimGiderleri[[#This Row],[Bütçe]])-1),(İşletimGiderleri[[#This Row],[Geçerli Dönem]]/İşletimGiderleri[[#This Row],[Bütçe]])-1))),\"-\")","v":{"v":0,"d":"0.00%"}}]
[null,"Araştırma ve Geliştirme","Teknoloji lisansları",{"$nulls":3},{"$f":"IFERROR(IF(Satış_Geliri=0,\"-\",İşletimGiderleri[Geçerli Dönem]/Satış_Geliri),\"-\")","v":"-"},{"$f":"IFERROR(IF(İşletimGiderleri[[#This Row],[Önceki Dönem]]=İşletimGiderleri[[#This Row],[Geçerli Dönem]],0,IF(İşletimGiderleri[[#This Row],[Geçerli Dönem]]>İşletimGiderleri[[#This Row],[Önceki Dönem]],ABS((İşletimGiderleri[[#This Row],[Geçerli Dönem]]/İşletimGiderleri[[#This Row],[Önceki Dönem]])-1),IF(AND(İşletimGiderleri[[#This Row],[Geçerli Dönem]]<İşletimGiderleri[[#This Row],[Önceki Dönem]],İşletimGiderleri[[#This Row],[Önceki Dönem]]<0),-((İşletimGiderleri[[#This Row],[Geçerli Dönem]]/İşletimGiderleri[[#This Row],[Önceki Dönem]])-1),(İşletimGiderleri[[#This Row],[Geçerli Dönem]]/İşletimGiderleri[[#This Row],[Önceki Dönem]])-1))),\"-\")","v":{"v":0,"d":"0.00%"}},{"$f":"IFERROR(IF(İşletimGiderleri[[#This Row],[Bütçe]]=İşletimGiderleri[[#This Row],[Geçerli Dönem]],0,IF(İşletimGiderleri[[#This Row],[Geçerli Dönem]]>İşletimGiderleri[[#This Row],[Bütçe]],ABS((İşletimGiderleri[[#This Row],[Geçerli Dönem]]/İşletimGiderleri[[#This Row],[Bütçe]])-1),IF(AND(İşletimGiderleri[[#This Row],[Geçerli Dönem]]<İşletimGiderleri[[#This Row],[Bütçe]],İşletimGiderleri[[#This Row],[Bütçe]]<0),-((İşletimGiderleri[[#This Row],[Geçerli Dönem]]/İşletimGiderleri[[#This Row],[Bütçe]])-1),(İşletimGiderleri[[#This Row],[Geçerli Dönem]]/İşletimGiderleri[[#This Row],[Bütçe]])-1))),\"-\")","v":{"v":0,"d":"0.00%"}}]
[null,"Araştırma ve Geliştirme","Patentler ",{"$nulls":3},{"$f":"IFERROR(IF(Satış_Geliri=0,\"-\",İşletimGiderleri[Geçerli Dönem]/Satış_Geliri),\"-\")","v":"-"},{"$f":"IFERROR(IF(İşletimGiderleri[[#This Row],[Önceki Dönem]]=İşletimGiderleri[[#This Row],[Geçerli Dönem]],0,IF(İşletimGiderleri[[#This Row],[Geçerli Dönem]]>İşletimGiderleri[[#This Row],[Önceki Dönem]],ABS((İşletimGiderleri[[#This Row],[Geçerli Dönem]]/İşletimGiderleri[[#This Row],[Önceki Dönem]])-1),IF(AND(İşletimGiderleri[[#This Row],[Geçerli Dönem]]<İşletimGiderleri[[#This Row],[Önceki Dönem]],İşletimGiderleri[[#This Row],[Önceki Dönem]]<0),-((İşletimGiderleri[[#This Row],[Geçerli Dönem]]/İşletimGiderleri[[#This Row],[Önceki Dönem]])-1),(İşletimGiderleri[[#This Row],[Geçerli Dönem]]/İşletimGiderleri[[#This Row],[Önceki Dönem]])-1))),\"-\")","v":{"v":0,"d":"0.00%"}},{"$f":"IFERROR(IF(İşletimGiderleri[[#This Row],[Bütçe]]=İşletimGiderleri[[#This Row],[Geçerli Dönem]],0,IF(İşletimGiderleri[[#This Row],[Geçerli Dönem]]>İşletimGiderleri[[#This Row],[Bütçe]],ABS((İşletimGiderleri[[#This Row],[Geçerli Dönem]]/İşletimGiderleri[[#This Row],[Bütçe]])-1),IF(AND(İşletimGiderleri[[#This Row],[Geçerli Dönem]]<İşletimGiderleri[[#This Row],[Bütçe]],İşletimGiderleri[[#This Row],[Bütçe]]<0),-((İşletimGiderleri[[#This Row],[Geçerli Dönem]]/İşletimGiderleri[[#This Row],[Bütçe]])-1),(İşletimGiderleri[[#This Row],[Geçerli Dönem]]/İşletimGiderleri[[#This Row],[Bütçe]])-1))),\"-\")","v":{"v":0,"d":"0.00%"}}]
[null,"Araştırma ve Geliştirme","Diğer giderler (belirtin)",{"$nulls":3},{"$f":"IFERROR(IF(Satış_Geliri=0,\"-\",İşletimGiderleri[Geçerli Dönem]/Satış_Geliri),\"-\")","v":"-"},{"$f":"IFERROR(IF(İşletimGiderleri[[#This Row],[Önceki Dönem]]=İşletimGiderleri[[#This Row],[Geçerli Dönem]],0,IF(İşletimGiderleri[[#This Row],[Geçerli Dönem]]>İşletimGiderleri[[#This Row],[Önceki Dönem]],ABS((İşletimGiderleri[[#This Row],[Geçerli Dönem]]/İşletimGiderleri[[#This Row],[Önceki Dönem]])-1),IF(AND(İşletimGiderleri[[#This Row],[Geçerli Dönem]]<İşletimGiderleri[[#This Row],[Önceki Dönem]],İşletimGiderleri[[#This Row],[Önceki Dönem]]<0),-((İşletimGiderleri[[#This Row],[Geçerli Dönem]]/İşletimGiderleri[[#This Row],[Önceki Dönem]])-1),(İşletimGiderleri[[#This Row],[Geçerli Dönem]]/İşletimGiderleri[[#This Row],[Önceki Dönem]])-1))),\"-\")","v":{"v":0,"d":"0.00%"}},{"$f":"IFERROR(IF(İşletimGiderleri[[#This Row],[Bütçe]]=İşletimGiderleri[[#This Row],[Geçerli Dönem]],0,IF(İşletimGiderleri[[#This Row],[Geçerli Dönem]]>İşletimGiderleri[[#This Row],[Bütçe]],ABS((İşletimGiderleri[[#This Row],[Geçerli Dönem]]/İşletimGiderleri[[#This Row],[Bütçe]])-1),IF(AND(İşletimGiderleri[[#This Row],[Geçerli Dönem]]<İşletimGiderleri[[#This Row],[Bütçe]],İşletimGiderleri[[#This Row],[Bütçe]]<0),-((İşletimGiderleri[[#This Row],[Geçerli Dönem]]/İşletimGiderleri[[#This Row],[Bütçe]])-1),(İşletimGiderleri[[#This Row],[Geçerli Dönem]]/İşletimGiderleri[[#This Row],[Bütçe]])-1))),\"-\")","v":{"v":0,"d":"0.00%"}}]
[null,"Araştırma ve Geliştirme","Diğer giderler (belirtin)",{"$nulls":3},{"$f":"IFERROR(IF(Satış_Geliri=0,\"-\",İşletimGiderleri[Geçerli Dönem]/Satış_Geliri),\"-\")","v":"-"},{"$f":"IFERROR(IF(İşletimGiderleri[[#This Row],[Önceki Dönem]]=İşletimGiderleri[[#This Row],[Geçerli Dönem]],0,IF(İşletimGiderleri[[#This Row],[Geçerli Dönem]]>İşletimGiderleri[[#This Row],[Önceki Dönem]],ABS((İşletimGiderleri[[#This Row],[Geçerli Dönem]]/İşletimGiderleri[[#This Row],[Önceki Dönem]])-1),IF(AND(İşletimGiderleri[[#This Row],[Geçerli Dönem]]<İşletimGiderleri[[#This Row],[Önceki Dönem]],İşletimGiderleri[[#This Row],[Önceki Dönem]]<0),-((İşletimGiderleri[[#This Row],[Geçerli Dönem]]/İşletimGiderleri[[#This Row],[Önceki Dönem]])-1),(İşletimGiderleri[[#This Row],[Geçerli Dönem]]/İşletimGiderleri[[#This Row],[Önceki Dönem]])-1))),\"-\")","v":{"v":0,"d":"0.00%"}},{"$f":"IFERROR(IF(İşletimGiderleri[[#This Row],[Bütçe]]=İşletimGiderleri[[#This Row],[Geçerli Dönem]],0,IF(İşletimGiderleri[[#This Row],[Geçerli Dönem]]>İşletimGiderleri[[#This Row],[Bütçe]],ABS((İşletimGiderleri[[#This Row],[Geçerli Dönem]]/İşletimGiderleri[[#This Row],[Bütçe]])-1),IF(AND(İşletimGiderleri[[#This Row],[Geçerli Dönem]]<İşletimGiderleri[[#This Row],[Bütçe]],İşletimGiderleri[[#This Row],[Bütçe]]<0),-((İşletimGiderleri[[#This Row],[Geçerli Dönem]]/İşletimGiderleri[[#This Row],[Bütçe]])-1),(İşletimGiderleri[[#This Row],[Geçerli Dönem]]/İşletimGiderleri[[#This Row],[Bütçe]])-1))),\"-\")","v":{"v":0,"d":"0.00%"}}]
[null,"Genel ve Yönetim","Maaşlar",{"$nulls":3},{"$f":"IFERROR(IF(Satış_Geliri=0,\"-\",İşletimGiderleri[Geçerli Dönem]/Satış_Geliri),\"-\")","v":"-"},{"$f":"IFERROR(IF(İşletimGiderleri[[#This Row],[Önceki Dönem]]=İşletimGiderleri[[#This Row],[Geçerli Dönem]],0,IF(İşletimGiderleri[[#This Row],[Geçerli Dönem]]>İşletimGiderleri[[#This Row],[Önceki Dönem]],ABS((İşletimGiderleri[[#This Row],[Geçerli Dönem]]/İşletimGiderleri[[#This Row],[Önceki Dönem]])-1),IF(AND(İşletimGiderleri[[#This Row],[Geçerli Dönem]]<İşletimGiderleri[[#This Row],[Önceki Dönem]],İşletimGiderleri[[#This Row],[Önceki Dönem]]<0),-((İşletimGiderleri[[#This Row],[Geçerli Dönem]]/İşletimGiderleri[[#This Row],[Önceki Dönem]])-1),(İşletimGiderleri[[#This Row],[Geçerli Dönem]]/İşletimGiderleri[[#This Row],[Önceki Dönem]])-1))),\"-\")","v":{"v":0,"d":"0.00%"}},{"$f":"IFERROR(IF(İşletimGiderleri[[#This Row],[Bütçe]]=İşletimGiderleri[[#This Row],[Geçerli Dönem]],0,IF(İşletimGiderleri[[#This Row],[Geçerli Dönem]]>İşletimGiderleri[[#This Row],[Bütçe]],ABS((İşletimGiderleri[[#This Row],[Geçerli Dönem]]/İşletimGiderleri[[#This Row],[Bütçe]])-1),IF(AND(İşletimGiderleri[[#This Row],[Geçerli Dönem]]<İşletimGiderleri[[#This Row],[Bütçe]],İşletimGiderleri[[#This Row],[Bütçe]]<0),-((İşletimGiderleri[[#This Row],[Geçerli Dönem]]/İşletimGiderleri[[#This Row],[Bütçe]])-1),(İşletimGiderleri[[#This Row],[Geçerli Dönem]]/İşletimGiderleri[[#This Row],[Bütçe]])-1))),\"-\")","v":{"v":0,"d":"0.00%"}}]
[null,"Genel ve Yönetim","Dış hizmetler",{"$nulls":3},{"$f":"IFERROR(IF(Satış_Geliri=0,\"-\",İşletimGiderleri[Geçerli Dönem]/Satış_Geliri),\"-\")","v":"-"},{"$f":"IFERROR(IF(İşletimGiderleri[[#This Row],[Önceki Dönem]]=İşletimGiderleri[[#This Row],[Geçerli Dönem]],0,IF(İşletimGiderleri[[#This Row],[Geçerli Dönem]]>İşletimGiderleri[[#This Row],[Önceki Dönem]],ABS((İşletimGiderleri[[#This Row],[Geçerli Dönem]]/İşletimGiderleri[[#This Row],[Önceki Dönem]])-1),IF(AND(İşletimGiderleri[[#This Row],[Geçerli Dönem]]<İşletimGiderleri[[#This Row],[Önceki Dönem]],İşletimGiderleri[[#This Row],[Önceki Dönem]]<0),-((İşletimGiderleri[[#This Row],[Geçerli Dönem]]/İşletimGiderleri[[#This Row],[Önceki Dönem]])-1),(İşletimGiderleri[[#This Row],[Geçerli Dönem]]/İşletimGiderleri[[#This Row],[Önceki Dönem]])-1))),\"-\")","v":{"v":0,"d":"0.00%"}},{"$f":"IFERROR(IF(İşletimGiderleri[[#This Row],[Bütçe]]=İşletimGiderleri[[#This Row],[Geçerli Dönem]],0,IF(İşletimGiderleri[[#This Row],[Geçerli Dönem]]>İşletimGiderleri[[#This Row],[Bütçe]],ABS((İşletimGiderleri[[#This Row],[Geçerli Dönem]]/İşletimGiderleri[[#This Row],[Bütçe]])-1),IF(AND(İşletimGiderleri[[#This Row],[Geçerli Dönem]]<İşletimGiderleri[[#This Row],[Bütçe]],İşletimGiderleri[[#This Row],[Bütçe]]<0),-((İşletimGiderleri[[#This Row],[Geçerli Dönem]]/İşletimGiderleri[[#This Row],[Bütçe]])-1),(İşletimGiderleri[[#This Row],[Geçerli Dönem]]/İşletimGiderleri[[#This Row],[Bütçe]])-1))),\"-\")","v":{"v":0,"d":"0.00%"}}]
[null,"Genel ve Yönetim","Malzemeler",{"$nulls":3},{"$f":"IFERROR(IF(Satış_Geliri=0,\"-\",İşletimGiderleri[Geçerli Dönem]/Satış_Geliri),\"-\")","v":"-"},{"$f":"IFERROR(IF(İşletimGiderleri[[#This Row],[Önceki Dönem]]=İşletimGiderleri[[#This Row],[Geçerli Dönem]],0,IF(İşletimGiderleri[[#This Row],[Geçerli Dönem]]>İşletimGiderleri[[#This Row],[Önceki Dönem]],ABS((İşletimGiderleri[[#This Row],[Geçerli Dönem]]/İşletimGiderleri[[#This Row],[Önceki Dönem]])-1),IF(AND(İşletimGiderleri[[#This Row],[Geçerli Dönem]]<İşletimGiderleri[[#This Row],[Önceki Dönem]],İşletimGiderleri[[#This Row],[Önceki Dönem]]<0),-((İşletimGiderleri[[#This Row],[Geçerli Dönem]]/İşletimGiderleri[[#This Row],[Önceki Dönem]])-1),(İşletimGiderleri[[#This Row],[Geçerli Dönem]]/İşletimGiderleri[[#This Row],[Önceki Dönem]])-1))),\"-\")","v":{"v":0,"d":"0.00%"}},{"$f":"IFERROR(IF(İşletimGiderleri[[#This Row],[Bütçe]]=İşletimGiderleri[[#This Row],[Geçerli Dönem]],0,IF(İşletimGiderleri[[#This Row],[Geçerli Dönem]]>İşletimGiderleri[[#This Row],[Bütçe]],ABS((İşletimGiderleri[[#This Row],[Geçerli Dönem]]/İşletimGiderleri[[#This Row],[Bütçe]])-1),IF(AND(İşletimGiderleri[[#This Row],[Geçerli Dönem]]<İşletimGiderleri[[#This Row],[Bütçe]],İşletimGiderleri[[#This Row],[Bütçe]]<0),-((İşletimGiderleri[[#This Row],[Geçerli Dönem]]/İşletimGiderleri[[#This Row],[Bütçe]])-1),(İşletimGiderleri[[#This Row],[Geçerli Dönem]]/İşletimGiderleri[[#This Row],[Bütçe]])-1))),\"-\")","v":{"v":0,"d":"0.00%"}}]
[null,"Genel ve Yönetim","Yemek ve eğlence",{"$nulls":3},{"$f":"IFERROR(IF(Satış_Geliri=0,\"-\",İşletimGiderleri[Geçerli Dönem]/Satış_Geliri),\"-\")","v":"-"},{"$f":"IFERROR(IF(İşletimGiderleri[[#This Row],[Önceki Dönem]]=İşletimGiderleri[[#This Row],[Geçerli Dönem]],0,IF(İşletimGiderleri[[#This Row],[Geçerli Dönem]]>İşletimGiderleri[[#This Row],[Önceki Dönem]],ABS((İşletimGiderleri[[#This Row],[Geçerli Dönem]]/İşletimGiderleri[[#This Row],[Önceki Dönem]])-1),IF(AND(İşletimGiderleri[[#This Row],[Geçerli Dönem]]<İşletimGiderleri[[#This Row],[Önceki Dönem]],İşletimGiderleri[[#This Row],[Önceki Dönem]]<0),-((İşletimGiderleri[[#This Row],[Geçerli Dönem]]/İşletimGiderleri[[#This Row],[Önceki Dönem]])-1),(İşletimGiderleri[[#This Row],[Geçerli Dönem]]/İşletimGiderleri[[#This Row],[Önceki Dönem]])-1))),\"-\")","v":{"v":0,"d":"0.00%"}},{"$f":"IFERROR(IF(İşletimGiderleri[[#This Row],[Bütçe]]=İşletimGiderleri[[#This Row],[Geçerli Dönem]],0,IF(İşletimGiderleri[[#This Row],[Geçerli Dönem]]>İşletimGiderleri[[#This Row],[Bütçe]],ABS((İşletimGiderleri[[#This Row],[Geçerli Dönem]]/İşletimGiderleri[[#This Row],[Bütçe]])-1),IF(AND(İşletimGiderleri[[#This Row],[Geçerli Dönem]]<İşletimGiderleri[[#This Row],[Bütçe]],İşletimGiderleri[[#This Row],[Bütçe]]<0),-((İşletimGiderleri[[#This Row],[Geçerli Dönem]]/İşletimGiderleri[[#This Row],[Bütçe]])-1),(İşletimGiderleri[[#This Row],[Geçerli Dönem]]/İşletimGiderleri[[#This Row],[Bütçe]])-1))),\"-\")","v":{"v":0,"d":"0.00%"}}]
[null,"Genel ve Yönetim","Kira",{"$nulls":3},{"$f":"IFERROR(IF(Satış_Geliri=0,\"-\",İşletimGiderleri[Geçerli Dönem]/Satış_Geliri),\"-\")","v":"-"},{"$f":"IFERROR(IF(İşletimGiderleri[[#This Row],[Önceki Dönem]]=İşletimGiderleri[[#This Row],[Geçerli Dönem]],0,IF(İşletimGiderleri[[#This Row],[Geçerli Dönem]]>İşletimGiderleri[[#This Row],[Önceki Dönem]],ABS((İşletimGiderleri[[#This Row],[Geçerli Dönem]]/İşletimGiderleri[[#This Row],[Önceki Dönem]])-1),IF(AND(İşletimGiderleri[[#This Row],[Geçerli Dönem]]<İşletimGiderleri[[#This Row],[Önceki Dönem]],İşletimGiderleri[[#This Row],[Önceki Dönem]]<0),-((İşletimGiderleri[[#This Row],[Geçerli Dönem]]/İşletimGiderleri[[#This Row],[Önceki Dönem]])-1),(İşletimGiderleri[[#This Row],[Geçerli Dönem]]/İşletimGiderleri[[#This Row],[Önceki Dönem]])-1))),\"-\")","v":{"v":0,"d":"0.00%"}},{"$f":"IFERROR(IF(İşletimGiderleri[[#This Row],[Bütçe]]=İşletimGiderleri[[#This Row],[Geçerli Dönem]],0,IF(İşletimGiderleri[[#This Row],[Geçerli Dönem]]>İşletimGiderleri[[#This Row],[Bütçe]],ABS((İşletimGiderleri[[#This Row],[Geçerli Dönem]]/İşletimGiderleri[[#This Row],[Bütçe]])-1),IF(AND(İşletimGiderleri[[#This Row],[Geçerli Dönem]]<İşletimGiderleri[[#This Row],[Bütçe]],İşletimGiderleri[[#This Row],[Bütçe]]<0),-((İşletimGiderleri[[#This Row],[Geçerli Dönem]]/İşletimGiderleri[[#This Row],[Bütçe]])-1),(İşletimGiderleri[[#This Row],[Geçerli Dönem]]/İşletimGiderleri[[#This Row],[Bütçe]])-1))),\"-\")","v":{"v":0,"d":"0.00%"}}]
[null,"Genel ve Yönetim","Telefon",{"$nulls":3},{"$f":"IFERROR(IF(Satış_Geliri=0,\"-\",İşletimGiderleri[Geçerli Dönem]/Satış_Geliri),\"-\")","v":"-"},{"$f":"IFERROR(IF(İşletimGiderleri[[#This Row],[Önceki Dönem]]=İşletimGiderleri[[#This Row],[Geçerli Dönem]],0,IF(İşletimGiderleri[[#This Row],[Geçerli Dönem]]>İşletimGiderleri[[#This Row],[Önceki Dönem]],ABS((İşletimGiderleri[[#This Row],[Geçerli Dönem]]/İşletimGiderleri[[#This Row],[Önceki Dönem]])-1),IF(AND(İşletimGiderleri[[#This Row],[Geçerli Dönem]]<İşletimGiderleri[[#This Row],[Önceki Dönem]],İşletimGiderleri[[#This Row],[Önceki Dönem]]<0),-((İşletimGiderleri[[#This Row],[Geçerli Dönem]]/İşletimGiderleri[[#This Row],[Önceki Dönem]])-1),(İşletimGiderleri[[#This Row],[Geçerli Dönem]]/İşletimGiderleri[[#This Row],[Önceki Dönem]])-1))),\"-\")","v":{"v":0,"d":"0.00%"}},{"$f":"IFERROR(IF(İşletimGiderleri[[#This Row],[Bütçe]]=İşletimGiderleri[[#This Row],[Geçerli Dönem]],0,IF(İşletimGiderleri[[#This Row],[Geçerli Dönem]]>İşletimGiderleri[[#This Row],[Bütçe]],ABS((İşletimGiderleri[[#This Row],[Geçerli Dönem]]/İşletimGiderleri[[#This Row],[Bütçe]])-1),IF(AND(İşletimGiderleri[[#This Row],[Geçerli Dönem]]<İşletimGiderleri[[#This Row],[Bütçe]],İşletimGiderleri[[#This Row],[Bütçe]]<0),-((İşletimGiderleri[[#This Row],[Geçerli Dönem]]/İşletimGiderleri[[#This Row],[Bütçe]])-1),(İşletimGiderleri[[#This Row],[Geçerli Dönem]]/İşletimGiderleri[[#This Row],[Bütçe]])-1))),\"-\")","v":{"v":0,"d":"0.00%"}}]
[null,"Genel ve Yönetim","Kamu hizmetleri",{"$nulls":3},{"$f":"IFERROR(IF(Satış_Geliri=0,\"-\",İşletimGiderleri[Geçerli Dönem]/Satış_Geliri),\"-\")","v":"-"},{"$f":"IFERROR(IF(İşletimGiderleri[[#This Row],[Önceki Dönem]]=İşletimGiderleri[[#This Row],[Geçerli Dönem]],0,IF(İşletimGiderleri[[#This Row],[Geçerli Dönem]]>İşletimGiderleri[[#This Row],[Önceki Dönem]],ABS((İşletimGiderleri[[#This Row],[Geçerli Dönem]]/İşletimGiderleri[[#This Row],[Önceki Dönem]])-1),IF(AND(İşletimGiderleri[[#This Row],[Geçerli Dönem]]<İşletimGiderleri[[#This Row],[Önceki Dönem]],İşletimGiderleri[[#This Row],[Önceki Dönem]]<0),-((İşletimGiderleri[[#This Row],[Geçerli Dönem]]/İşletimGiderleri[[#This Row],[Önceki Dönem]])-1),(İşletimGiderleri[[#This Row],[Geçerli Dönem]]/İşletimGiderleri[[#This Row],[Önceki Dönem]])-1))),\"-\")","v":{"v":0,"d":"0.00%"}},{"$f":"IFERROR(IF(İşletimGiderleri[[#This Row],[Bütçe]]=İşletimGiderleri[[#This Row],[Geçerli Dönem]],0,IF(İşletimGiderleri[[#This Row],[Geçerli Dönem]]>İşletimGiderleri[[#This Row],[Bütçe]],ABS((İşletimGiderleri[[#This Row],[Geçerli Dönem]]/İşletimGiderleri[[#This Row],[Bütçe]])-1),IF(AND(İşletimGiderleri[[#This Row],[Geçerli Dönem]]<İşletimGiderleri[[#This Row],[Bütçe]],İşletimGiderleri[[#This Row],[Bütçe]]<0),-((İşletimGiderleri[[#This Row],[Geçerli Dönem]]/İşletimGiderleri[[#This Row],[Bütçe]])-1),(İşletimGiderleri[[#This Row],[Geçerli Dönem]]/İşletimGiderleri[[#This Row],[Bütçe]])-1))),\"-\")","v":{"v":0,"d":"0.00%"}}]
[null,"Genel ve Yönetim","Amortisman",{"$nulls":3},{"$f":"IFERROR(IF(Satış_Geliri=0,\"-\",İşletimGiderleri[Geçerli Dönem]/Satış_Geliri),\"-\")","v":"-"},{"$f":"IFERROR(IF(İşletimGiderleri[[#This Row],[Önceki Dönem]]=İşletimGiderleri[[#This Row],[Geçerli Dönem]],0,IF(İşletimGiderleri[[#This Row],[Geçerli Dönem]]>İşletimGiderleri[[#This Row],[Önceki Dönem]],ABS((İşletimGiderleri[[#This Row],[Geçerli Dönem]]/İşletimGiderleri[[#This Row],[Önceki Dönem]])-1),IF(AND(İşletimGiderleri[[#This Row],[Geçerli Dönem]]<İşletimGiderleri[[#This Row],[Önceki Dönem]],İşletimGiderleri[[#This Row],[Önceki Dönem]]<0),-((İşletimGiderleri[[#This Row],[Geçerli Dönem]]/İşletimGiderleri[[#This Row],[Önceki Dönem]])-1),(İşletimGiderleri[[#This Row],[Geçerli Dönem]]/İşletimGiderleri[[#This Row],[Önceki Dönem]])-1))),\"-\")","v":{"v":0,"d":"0.00%"}},{"$f":"IFERROR(IF(İşletimGiderleri[[#This Row],[Bütçe]]=İşletimGiderleri[[#This Row],[Geçerli Dönem]],0,IF(İşletimGiderleri[[#This Row],[Geçerli Dönem]]>İşletimGiderleri[[#This Row],[Bütçe]],ABS((İşletimGiderleri[[#This Row],[Geçerli Dönem]]/İşletimGiderleri[[#This Row],[Bütçe]])-1),IF(AND(İşletimGiderleri[[#This Row],[Geçerli Dönem]]<İşletimGiderleri[[#This Row],[Bütçe]],İşletimGiderleri[[#This Row],[Bütçe]]<0),-((İşletimGiderleri[[#This Row],[Geçerli Dönem]]/İşletimGiderleri[[#This Row],[Bütçe]])-1),(İşletimGiderleri[[#This Row],[Geçerli Dönem]]/İşletimGiderleri[[#This Row],[Bütçe]])-1))),\"-\")","v":{"v":0,"d":"0.00%"}}]
[null,"Genel ve Yönetim","Sigorta",{"$nulls":3},{"$f":"IFERROR(IF(Satış_Geliri=0,\"-\",İşletimGiderleri[Geçerli Dönem]/Satış_Geliri),\"-\")","v":"-"},{"$f":"IFERROR(IF(İşletimGiderleri[[#This Row],[Önceki Dönem]]=İşletimGiderleri[[#This Row],[Geçerli Dönem]],0,IF(İşletimGiderleri[[#This Row],[Geçerli Dönem]]>İşletimGiderleri[[#This Row],[Önceki Dönem]],ABS((İşletimGiderleri[[#This Row],[Geçerli Dönem]]/İşletimGiderleri[[#This Row],[Önceki Dönem]])-1),IF(AND(İşletimGiderleri[[#This Row],[Geçerli Dönem]]<İşletimGiderleri[[#This Row],[Önceki Dönem]],İşletimGiderleri[[#This Row],[Önceki Dönem]]<0),-((İşletimGiderleri[[#This Row],[Geçerli Dönem]]/İşletimGiderleri[[#This Row],[Önceki Dönem]])-1),(İşletimGiderleri[[#This Row],[Geçerli Dönem]]/İşletimGiderleri[[#This Row],[Önceki Dönem]])-1))),\"-\")","v":{"v":0,"d":"0.00%"}},{"$f":"IFERROR(IF(İşletimGiderleri[[#This Row],[Bütçe]]=İşletimGiderleri[[#This Row],[Geçerli Dönem]],0,IF(İşletimGiderleri[[#This Row],[Geçerli Dönem]]>İşletimGiderleri[[#This Row],[Bütçe]],ABS((İşletimGiderleri[[#This Row],[Geçerli Dönem]]/İşletimGiderleri[[#This Row],[Bütçe]])-1),IF(AND(İşletimGiderleri[[#This Row],[Geçerli Dönem]]<İşletimGiderleri[[#This Row],[Bütçe]],İşletimGiderleri[[#This Row],[Bütçe]]<0),-((İşletimGiderleri[[#This Row],[Geçerli Dönem]]/İşletimGiderleri[[#This Row],[Bütçe]])-1),(İşletimGiderleri[[#This Row],[Geçerli Dönem]]/İşletimGiderleri[[#This Row],[Bütçe]])-1))),\"-\")","v":{"v":0,"d":"0.00%"}}]
[null,"Genel ve Yönetim","Onarım ve bakım",{"$nulls":3},{"$f":"IFERROR(IF(Satış_Geliri=0,\"-\",İşletimGiderleri[Geçerli Dönem]/Satış_Geliri),\"-\")","v":"-"},{"$f":"IFERROR(IF(İşletimGiderleri[[#This Row],[Önceki Dönem]]=İşletimGiderleri[[#This Row],[Geçerli Dönem]],0,IF(İşletimGiderleri[[#This Row],[Geçerli Dönem]]>İşletimGiderleri[[#This Row],[Önceki Dönem]],ABS((İşletimGiderleri[[#This Row],[Geçerli Dönem]]/İşletimGiderleri[[#This Row],[Önceki Dönem]])-1),IF(AND(İşletimGiderleri[[#This Row],[Geçerli Dönem]]<İşletimGiderleri[[#This Row],[Önceki Dönem]],İşletimGiderleri[[#This Row],[Önceki Dönem]]<0),-((İşletimGiderleri[[#This Row],[Geçerli Dönem]]/İşletimGiderleri[[#This Row],[Önceki Dönem]])-1),(İşletimGiderleri[[#This Row],[Geçerli Dönem]]/İşletimGiderleri[[#This Row],[Önceki Dönem]])-1))),\"-\")","v":{"v":0,"d":"0.00%"}},{"$f":"IFERROR(IF(İşletimGiderleri[[#This Row],[Bütçe]]=İşletimGiderleri[[#This Row],[Geçerli Dönem]],0,IF(İşletimGiderleri[[#This Row],[Geçerli Dönem]]>İşletimGiderleri[[#This Row],[Bütçe]],ABS((İşletimGiderleri[[#This Row],[Geçerli Dönem]]/İşletimGiderleri[[#This Row],[Bütçe]])-1),IF(AND(İşletimGiderleri[[#This Row],[Geçerli Dönem]]<İşletimGiderleri[[#This Row],[Bütçe]],İşletimGiderleri[[#This Row],[Bütçe]]<0),-((İşletimGiderleri[[#This Row],[Geçerli Dönem]]/İşletimGiderleri[[#This Row],[Bütçe]])-1),(İşletimGiderleri[[#This Row],[Geçerli Dönem]]/İşletimGiderleri[[#This Row],[Bütçe]])-1))),\"-\")","v":{"v":0,"d":"0.00%"}}]
[null,"Genel ve Yönetim","Diğer giderler (belirtin)",{"$nulls":3},{"$f":"IFERROR(IF(Satış_Geliri=0,\"-\",İşletimGiderleri[Geçerli Dönem]/Satış_Geliri),\"-\")","v":"-"},{"$f":"IFERROR(IF(İşletimGiderleri[[#This Row],[Önceki Dönem]]=İşletimGiderleri[[#This Row],[Geçerli Dönem]],0,IF(İşletimGiderleri[[#This Row],[Geçerli Dönem]]>İşletimGiderleri[[#This Row],[Önceki Dönem]],ABS((İşletimGiderleri[[#This Row],[Geçerli Dönem]]/İşletimGiderleri[[#This Row],[Önceki Dönem]])-1),IF(AND(İşletimGiderleri[[#This Row],[Geçerli Dönem]]<İşletimGiderleri[[#This Row],[Önceki Dönem]],İşletimGiderleri[[#This Row],[Önceki Dönem]]<0),-((İşletimGiderleri[[#This Row],[Geçerli Dönem]]/İşletimGiderleri[[#This Row],[Önceki Dönem]])-1),(İşletimGiderleri[[#This Row],[Geçerli Dönem]]/İşletimGiderleri[[#This Row],[Önceki Dönem]])-1))),\"-\")","v":{"v":0,"d":"0.00%"}},{"$f":"IFERROR(IF(İşletimGiderleri[[#This Row],[Bütçe]]=İşletimGiderleri[[#This Row],[Geçerli Dönem]],0,IF(İşletimGiderleri[[#This Row],[Geçerli Dönem]]>İşletimGiderleri[[#This Row],[Bütçe]],ABS((İşletimGiderleri[[#This Row],[Geçerli Dönem]]/İşletimGiderleri[[#This Row],[Bütçe]])-1),IF(AND(İşletimGiderleri[[#This Row],[Geçerli Dönem]]<İşletimGiderleri[[#This Row],[Bütçe]],İşletimGiderleri[[#This Row],[Bütçe]]<0),-((İşletimGiderleri[[#This Row],[Geçerli Dönem]]/İşletimGiderleri[[#This Row],[Bütçe]])-1),(İşletimGiderleri[[#This Row],[Geçerli Dönem]]/İşletimGiderleri[[#This Row],[Bütçe]])-1))),\"-\")","v":{"v":0,"d":"0.00%"}}]
[null,"Genel ve Yönetim","Diğer giderler (belirtin)",{"$nulls":3},{"$f":"IFERROR(IF(Satış_Geliri=0,\"-\",İşletimGiderleri[Geçerli Dönem]/Satış_Geliri),\"-\")","v":"-"},{"$f":"IFERROR(IF(İşletimGiderleri[[#This Row],[Önceki Dönem]]=İşletimGiderleri[[#This Row],[Geçerli Dönem]],0,IF(İşletimGiderleri[[#This Row],[Geçerli Dönem]]>İşletimGiderleri[[#This Row],[Önceki Dönem]],ABS((İşletimGiderleri[[#This Row],[Geçerli Dönem]]/İşletimGiderleri[[#This Row],[Önceki Dönem]])-1),IF(AND(İşletimGiderleri[[#This Row],[Geçerli Dönem]]<İşletimGiderleri[[#This Row],[Önceki Dönem]],İşletimGiderleri[[#This Row],[Önceki Dönem]]<0),-((İşletimGiderleri[[#This Row],[Geçerli Dönem]]/İşletimGiderleri[[#This Row],[Önceki Dönem]])-1),(İşletimGiderleri[[#This Row],[Geçerli Dönem]]/İşletimGiderleri[[#This Row],[Önceki Dönem]])-1))),\"-\")","v":{"v":0,"d":"0.00%"}},{"$f":"IFERROR(IF(İşletimGiderleri[[#This Row],[Bütçe]]=İşletimGiderleri[[#This Row],[Geçerli Dönem]],0,IF(İşletimGiderleri[[#This Row],[Geçerli Dönem]]>İşletimGiderleri[[#This Row],[Bütçe]],ABS((İşletimGiderleri[[#This Row],[Geçerli Dönem]]/İşletimGiderleri[[#This Row],[Bütçe]])-1),IF(AND(İşletimGiderleri[[#This Row],[Geçerli Dönem]]<İşletimGiderleri[[#This Row],[Bütçe]],İşletimGiderleri[[#This Row],[Bütçe]]<0),-((İşletimGiderleri[[#This Row],[Geçerli Dönem]]/İşletimGiderleri[[#This Row],[Bütçe]])-1),(İşletimGiderleri[[#This Row],[Geçerli Dönem]]/İşletimGiderleri[[#This Row],[Bütçe]])-1))),\"-\")","v":{"v":0,"d":"0.00%"}}]
[null,"Toplam İşletim Giderleri",null,{"$f":"SUBTOTAL(109,İşletimGiderleri[Önceki Dönem])","v":0},{"$f":"SUBTOTAL(109,İşletimGiderleri[Bütçe])","v":0},{"$f":"SUBTOTAL(109,İşletimGiderleri[Geçerli Dönem])","v":0},{"$f":"SUBTOTAL(109,İşletimGiderleri[Satışların %’si olarak Geçerli Dönem])","v":{"v":0,"d":"0.00%"}},{"$f":"SUBTOTAL(109,İşletimGiderleri[Önceki Döneme göre % Değişikliği])","v":{"v":0,"d":"0.00%"}},{"$f":"SUBTOTAL(109,İşletimGiderleri[Bütçeye göre % Değişikliği])","v":{"v":0,"d":"0.00%"}}]

{"sheet":"Vergiler","index":4,"n_rows":10,"n_cols":9,"rows_kept":10,"merged":[[0,7,2,8]]}
[null,{"$f":"Çalışma_Kitabı_Başlığı","v":"Kar ve Zarar Bildirimi"}]
[null,{"$f":"Şirket_Adı","v":"Şirket Adı"},"000’lar halinde belirtilmiştir"]
[null,"Vergiler",{"$f":"IFERROR(Vergiler[[#Totals],[Geçerli Dönem]],\"-\")","v":0}]
[null,"Tür","Açıklama","Önceki Dönem","Bütçe","Geçerli Dönem","Satışların %’si olarak Geçerli Dönem","Önceki Döneme göre % Değişikliği","Bütçeye göre % Değişikliği"]
[null,"Vergiler","Gelir vergileri",{"$nulls":3},{"$f":"IFERROR(IF(Satış_Geliri=0,\"-\",Vergiler[Geçerli Dönem]/Satış_Geliri),\"-\")","v":"-"},{"$f":"IFERROR(IF(Vergiler[[#This Row],[Önceki Dönem]]=Vergiler[[#This Row],[Geçerli Dönem]],0,IF(Vergiler[[#This Row],[Geçerli Dönem]]>Vergiler[[#This Row],[Önceki Dönem]],ABS((Vergiler[[#This Row],[Geçerli Dönem]]/Vergiler[[#This Row],[Önceki Dönem]])-1),IF(AND(Vergiler[[#This Row],[Geçerli Dönem]]<Vergiler[[#This Row],[Önceki Dönem]],Vergiler[[#This Row],[Önceki Dönem]]<0),-((Vergiler[[#This Row],[Geçerli Dönem]]/Vergiler[[#This Row],[Önceki Dönem]])-1),(Vergiler[[#This Row],[Geçerli Dönem]]/Vergiler[[#This Row],[Önceki Dönem]])-1))),\"-\")","v":{"v":0,"d":"0.00%"}},{"$f":"IFERROR(IF(Vergiler[[#This Row],[Bütçe]]=Vergiler[[#This Row],[Geçerli Dönem]],0,IF(Vergiler[[#This Row],[Geçerli Dönem]]>Vergiler[[#This Row],[Bütçe]],ABS((Vergiler[[#This Row],[Geçerli Dönem]]/Vergiler[[#This Row],[Bütçe]])-1),IF(AND(Vergiler[[#This Row],[Geçerli Dönem]]<Vergiler[[#This Row],[Bütçe]],Vergiler[[#This Row],[Bütçe]]<0),-((Vergiler[[#This Row],[Geçerli Dönem]]/Vergiler[[#This Row],[Bütçe]])-1),(Vergiler[[#This Row],[Geçerli Dönem]]/Vergiler[[#This Row],[Bütçe]])-1))),\"-\")","v":{"v":0,"d":"0.00%"}}]
[null,"Vergiler","Bordro vergileri",{"$nulls":3},{"$f":"IFERROR(IF(Satış_Geliri=0,\"-\",Vergiler[Geçerli Dönem]/Satış_Geliri),\"-\")","v":"-"},{"$f":"IFERROR(IF(Vergiler[[#This Row],[Önceki Dönem]]=Vergiler[[#This Row],[Geçerli Dönem]],0,IF(Vergiler[[#This Row],[Geçerli Dönem]]>Vergiler[[#This Row],[Önceki Dönem]],ABS((Vergiler[[#This Row],[Geçerli Dönem]]/Vergiler[[#This Row],[Önceki Dönem]])-1),IF(AND(Vergiler[[#This Row],[Geçerli Dönem]]<Vergiler[[#This Row],[Önceki Dönem]],Vergiler[[#This Row],[Önceki Dönem]]<0),-((Vergiler[[#This Row],[Geçerli Dönem]]/Vergiler[[#This Row],[Önceki Dönem]])-1),(Vergiler[[#This Row],[Geçerli Dönem]]/Vergiler[[#This Row],[Önceki Dönem]])-1))),\"-\")","v":{"v":0,"d":"0.00%"}},{"$f":"IFERROR(IF(Vergiler[[#This Row],[Bütçe]]=Vergiler[[#This Row],[Geçerli Dönem]],0,IF(Vergiler[[#This Row],[Geçerli Dönem]]>Vergiler[[#This Row],[Bütçe]],ABS((Vergiler[[#This Row],[Geçerli Dönem]]/Vergiler[[#This Row],[Bütçe]])-1),IF(AND(Vergiler[[#This Row],[Geçerli Dönem]]<Vergiler[[#This Row],[Bütçe]],Vergiler[[#This Row],[Bütçe]]<0),-((Vergiler[[#This Row],[Geçerli Dönem]]/Vergiler[[#This Row],[Bütçe]])-1),(Vergiler[[#This Row],[Geçerli Dönem]]/Vergiler[[#This Row],[Bütçe]])-1))),\"-\")","v":{"v":0,"d":"0.00%"}}]
[null,"Vergiler","Emlak vergileri",{"$nulls":3},{"$f":"IFERROR(IF(Satış_Geliri=0,\"-\",Vergiler[Geçerli Dönem]/Satış_Geliri),\"-\")","v":"-"},{"$f":"IFERROR(IF(Vergiler[[#This Row],[Önceki Dönem]]=Vergiler[[#This Row],[Geçerli Dönem]],0,IF(Vergiler[[#This Row],[Geçerli Dönem]]>Vergiler[[#This Row],[Önceki Dönem]],ABS((Vergiler[[#This Row],[Geçerli Dönem]]/Vergiler[[#This Row],[Önceki Dönem]])-1),IF(AND(Vergiler[[#This Row],[Geçerli Dönem]]<Vergiler[[#This Row],[Önceki Dönem]],Vergiler[[#This Row],[Önceki Dönem]]<0),-((Vergiler[[#This Row],[Geçerli Dönem]]/Vergiler[[#This Row],[Önceki Dönem]])-1),(Vergiler[[#This Row],[Geçerli Dönem]]/Vergiler[[#This Row],[Önceki Dönem]])-1))),\"-\")","v":{"v":0,"d":"0.00%"}},{"$f":"IFERROR(IF(Vergiler[[#This Row],[Bütçe]]=Vergiler[[#This Row],[Geçerli Dönem]],0,IF(Vergiler[[#This Row],[Geçerli Dönem]]>Vergiler[[#This Row],[Bütçe]],ABS((Vergiler[[#This Row],[Geçerli Dönem]]/Vergiler[[#This Row],[Bütçe]])-1),IF(AND(Vergiler[[#This Row],[Geçerli Dönem]]<Vergiler[[#This Row],[Bütçe]],Vergiler[[#This Row],[Bütçe]]<0),-((Vergiler[[#This Row],[Geçerli Dönem]]/Vergiler[[#This Row],[Bütçe]])-1),(Vergiler[[#This Row],[Geçerli Dönem]]/Vergiler[[#This Row],[Bütçe]])-1))),\"-\")","v":{"v":0,"d":"0.00%"}}]
[null,"Vergiler","Diğer vergiler (belirtin)",{"$nulls":3},{"$f":"IFERROR(IF(Satış_Geliri=0,\"-\",Vergiler[Geçerli Dönem]/Satış_Geliri),\"-\")","v":"-"},{"$f":"IFERROR(IF(Vergiler[[#This Row],[Önceki Dönem]]=Vergiler[[#This Row],[Geçerli Dönem]],0,IF(Vergiler[[#This Row],[Geçerli Dönem]]>Vergiler[[#This Row],[Önceki Dönem]],ABS((Vergiler[[#This Row],[Geçerli Dönem]]/Vergiler[[#This Row],[Önceki Dönem]])-1),IF(AND(Vergiler[[#This Row],[Geçerli Dönem]]<Vergiler[[#This Row],[Önceki Dönem]],Vergiler[[#This Row],[Önceki Dönem]]<0),-((Vergiler[[#This Row],[Geçerli Dönem]]/Vergiler[[#This Row],[Önceki Dönem]])-1),(Vergiler[[#This Row],[Geçerli Dönem]]/Vergiler[[#This Row],[Önceki Dönem]])-1))),\"-\")","v":{"v":0,"d":"0.00%"}},{"$f":"IFERROR(IF(Vergiler[[#This Row],[Bütçe]]=Vergiler[[#This Row],[Geçerli Dönem]],0,IF(Vergiler[[#This Row],[Geçerli Dönem]]>Vergiler[[#This Row],[Bütçe]],ABS((Vergiler[[#This Row],[Geçerli Dönem]]/Vergiler[[#This Row],[Bütçe]])-1),IF(AND(Vergiler[[#This Row],[Geçerli Dönem]]<Vergiler[[#This Row],[Bütçe]],Vergiler[[#This Row],[Bütçe]]<0),-((Vergiler[[#This Row],[Geçerli Dönem]]/Vergiler[[#This Row],[Bütçe]])-1),(Vergiler[[#This Row],[Geçerli Dönem]]/Vergiler[[#This Row],[Bütçe]])-1))),\"-\")","v":{"v":0,"d":"0.00%"}}]
[null,"Vergiler","Diğer vergiler (belirtin)",{"$nulls":3},{"$f":"IFERROR(IF(Satış_Geliri=0,\"-\",Vergiler[Geçerli Dönem]/Satış_Geliri),\"-\")","v":"-"},{"$f":"IFERROR(IF(Vergiler[[#This Row],[Önceki Dönem]]=Vergiler[[#This Row],[Geçerli Dönem]],0,IF(Vergiler[[#This Row],[Geçerli Dönem]]>Vergiler[[#This Row],[Önceki Dönem]],ABS((Vergiler[[#This Row],[Geçerli Dönem]]/Vergiler[[#This Row],[Önceki Dönem]])-1),IF(AND(Vergiler[[#This Row],[Geçerli Dönem]]<Vergiler[[#This Row],[Önceki Dönem]],Vergiler[[#This Row],[Önceki Dönem]]<0),-((Vergiler[[#This Row],[Geçerli Dönem]]/Vergiler[[#This Row],[Önceki Dönem]])-1),(Vergiler[[#This Row],[Geçerli Dönem]]/Vergiler[[#This Row],[Önceki Dönem]])-1))),\"-\")","v":{"v":0,"d":"0.00%"}},{"$f":"IFERROR(IF(Vergiler[[#This Row],[Bütçe]]=Vergiler[[#This Row],[Geçerli Dönem]],0,IF(Vergiler[[#This Row],[Geçerli Dönem]]>Vergiler[[#This Row],[Bütçe]],ABS((Vergiler[[#This Row],[Geçerli Dönem]]/Vergiler[[#This Row],[Bütçe]])-1),IF(AND(Vergiler[[#This Row],[Geçerli Dönem]]<Vergiler[[#This Row],[Bütçe]],Vergiler[[#This Row],[Bütçe]]<0),-((Vergiler[[#This Row],[Geçerli Dönem]]/Vergiler[[#This Row],[Bütçe]])-1),(Vergiler[[#This Row],[Geçerli Dönem]]/Vergiler[[#This Row],[Bütçe]])-1))),\"-\")","v":{"v":0,"d":"0.00%"}}]
[null,"Toplam Vergi",null,{"$f":"SUBTOTAL(109,Vergiler[Önceki Dönem])","v":0},{"$f":"SUBTOTAL(109,Vergiler[Bütçe])","v":0},{"$f":"SUBTOTAL(109,Vergiler[Geçerli Dönem])","v":0},{"$f":"IFERROR(SUBTOTAL(109,Vergiler[Satışların %’si olarak Geçerli Dönem]),\"-\")","v":{"v":0,"d":"0.00%"}},{"$f":"SUBTOTAL(109,Vergiler[Önceki Döneme göre % Değişikliği])","v":{"v":0,"d":"0.00%"}},{"$f":"SUBTOTAL(109,Vergiler[Bütçeye göre % Değişikliği])","v":{"v":0,"d":"0.00%"}}]

{"sheet":"Kategoriler","index":5,"n_rows":8,"n_cols":2,"rows_kept":8}
[null,"Kategoriler"]
[null,"Satış Geliri"]
[null,"Satışların Maliyeti"]
[null,"Gelir"]
[null,"Satış ve Pazarlama"]
[null,"Araştırma ve Geliştirme"]
[null,"Genel ve Yönetim"]
[null,"Vergiler"]